Cogmind - Beta 11.1 @@@ ROGUE MODE // 2022.06.15 @ 16:29:17 Player: Gobbopathe Result: Destroyed by S-10 Pest with Light Assault Rifle Performance ------------- Evolutions (1) 500 Regions Visited (5) 1000 Robots Destroyed (14) 70 Value Destroyed (133) 133 Prototype IDs (5) 100 Alien Tech Used (0) 0 Bonus (300) 300 TOTAL SCORE: 2103 Bonus ------- Aligned with FarCom 300 Cogmind --------- Core Integrity 0/400 Matter 285/300 Energy 99/100 System Corruption 0% Temperature Cool (0) Movement Core (50) Location -8/Mines Parts ------- > --- POWER (1) -------- (None) > --- PROPULSION (4) --- (None) > --- UTILITY (2) ------ Visual Processing Unit > --- WEAPON (2) ------- (None) > --- INVENTORY (5) ---- Improved Terrain Scanner AWS/Autocannon Grenade Launcher Peak State ------------ > --- POWER ------------ (None) > --- PROPULSION ------- Flight Unit Flight Unit Flight Unit > --- UTILITY ---------- Small Storage Unit Visual Processing Unit > --- WEAPON ----------- AWS/Thermal > --- INVENTORY -------- Improved Terrain Scanner Grenade Launcher Mining Claw [Rating: 22] Favorites ----------- Power Light Ion Engine Engine Light Ion Engine Propulsion Flight Unit Wheel Compact Wheel Flight Unit Flight Unit Utility Small Storage Unit Device Improved Terrain Scanner Storage Small Storage Unit Processor Visual Processing Unit Weapon Light Assault Rifle Energy Gun EM Pulse Gun Energy Cannon Particle Cannon Ballistic Gun Light Assault Rifle Build | -11 -10 -9 -9 -9 -8 ------- Run | Scr Mat Mat Min Exi Min Slots Evolved 2 | . . 2 . . . Power . | . . . . . . Propulsion 2 | . . 2 . . . Utility . | . . . . . . Weapon . | . . . . . . Parts Attached 30 | 7 12 7 2 2 . Power 5 | 1 3 1 . . . Engine 5 | 1 3 1 . . . Core . | . . . . . . Reactor . | . . . . . . Propulsion 12 | 2 5 3 2 . . Treads . | . . . . . . Leg . | . . . . . . Wheel 3 | 2 1 . . . . Hover . | . . . . . . Flight 9 | . 4 3 2 . . Utility 4 | 2 1 1 . . . Device 1 | 1 . . . . . Storage 2 | 1 . 1 . . . Processor 1 | . 1 . . . . Hackware . | . . . . . . Protection . | . . . . . . Artifact . | . . . . . . Weapon 9 | 2 3 2 . 2 . Energy Gun 3 | . 1 1 . 1 . Energy Cannon 1 | . . 1 . . . Ballistic Gun 5 | 2 2 . . 1 . Ballistic Cannon . | . . . . . . Launcher . | . . . . . . Special Weapon . | . . . . . . Impact Weapon . | . . . . . . Slashing Weapon . | . . . . . . Piercing Weapon . | . . . . . . Special Melee Weapon . | . . . . . . Unidentified Prototypes 3 | . . 1 . 2 . Parts Lost 8 | . . . 5 . 3 Power . | . . . . . . Propulsion 6 | . . . 3 . 3 Utility . | . . . . . . Weapon 2 | . . . 2 . . Highest Loss Streak 5 | . . . 5 . 2 To Critical Strikes . | . . . . . . Average Slot Usage (%) 74 | . 87 100 88 55 36 Engine 7 | . 14 11 11 . . Wheel 1 | . 3 . . . . Flight 30 | . 24 44 44 33 16 Device 5 | . 14 . . . . Storage 7 | . 1 11 11 11 8 Processor 7 | . . 11 11 11 11 Energy Gun 4 | . 7 10 5 . . Ballistic Gun 10 | . 21 11 5 . . Naked Turns . | . . . . . . Heaviest Build 18 | 14 14 18 16 5 5 Greatest Support 32 | 32 32 16 16 12 12 Greatest Overweight (x) 1 | 1 . 1 . . 1 Average Overweight (x) . | . . . . . . Largest Inventory Capacity 8 | 8 8 8 8 8 8 Average Capacity 7 | 7 5 7 8 8 7 Most Carried 6 | 5 5 5 5 6 6 Average Carried 4 | 2 4 3 3 3 5 Final Capacity 8 | 8 5 8 8 8 5 Final Carried 6 | 5 5 5 3 6 5 Class Distribution -------------------- 64% | Mutant 18% | Scavenger-Mutant 11% | Scavenger-Sprinter 5% | Sprinter Dominant Class ---------------- Scavenger-Mutant | -10/Materials Scavenger-Sprinter | -9/Materials Scavenger-Sprinter | -9/Mines Mutant | -9/Exiles Mutant | -8/Mines Resources | -11 -10 -9 -9 -9 -8 ----------- Run | Scr Mat Mat Min Exi Min Matter Collected 571 | 285 151 135 . . . Remotely . | . . . . . . Salvage Created 352 | 75 151 126 . . . Parts 29 | 6 15 8 . . . Haulers Intercepted 1 | . . 1 . . . Recyclers Shooed 1 | 1 . . . . . Parts Field Recycled . | . . . . . . Retrieved Matter . | . . . . . . Parts Self-Destructed . | . . . . . . Prevented . | . . . . . . Kills | -11 -10 -9 -9 -9 -8 ------- Run | Scr Mat Mat Min Exi Min Combat Hostiles Destroyed 8 | . 8 . . . . Guns 8 | . 8 . . . . Classes Destroyed 5 | 2 2 1 . . . Tunneler 1 | 1 . . . . . Hauler 1 | . . 1 . . . Recycler 2 | 1 . 1 . . . Watcher 2 | . 1 1 . . . Swarmer 8 | . 8 . . . . Best Kill Streak 6 | 2 6 2 . . . Combat Bots Only 6 | . 6 . . . . Max Kills in Single Turn 1 | 1 1 1 . . . Gunslinging . | . . . . . . Exploded . | . . . . . . Melee . | . . . . . . Uniques/NPCs Destroyed . | . . . . . . Combat | -11 -10 -9 -9 -9 -8 -------- Run | Scr Mat Mat Min Exi Min Damage Taken 1017 | . 254 128 238 . 397 Core 447 | . 44 22 67 . 314 Absorbed by Shields . | . . . . . . Core Remaining (%) 91 | 100 82 . . . . Volleys Fired 43 | 4 30 9 . . . Largest 2 | 2 2 2 . . . Hottest 88 | 40 60 88 . . . Shots Fired 86 | 8 60 18 . . . Gun 82 | 8 60 14 . . . Cannon 4 | . . 4 . . . Launcher . | . . . . . . Special . | . . . . . . Kinetic 69 | 8 52 9 . . . Thermal 4 | . . 4 . . . Explosive . | . . . . . . Electromagnetic 13 | . 8 5 . . . Robot Hit Streak 11 | 3 11 11 . . . Robot Miss Streak 3 | 1 3 2 . . . Penetration Max . | . . . . . . Secondary Targets . | . . . . . . Shots Hit Robots 51 | 5 33 13 . . . Core Hits 19 | 4 12 3 . . . Critical Kills . | . . . . . . Critical Parts Destroyed . | . . . . . . Critical Strikes . | . . . . . . Melee Attacks . | . . . . . . Impact . | . . . . . . Slashing . | . . . . . . Piercing . | . . . . . . Sneak Attacks . | . . . . . . Combat Hostiles . | . . . . . . Follow-up Attacks . | . . . . . . Damage Inflicted 594 | 44 367 183 . . . Guns 513 | 44 367 102 . . . Cannons 81 | . . 81 . . . Explosions . | . . . . . . Melee . | . . . . . . Ramming . | . . . . . . Kinetic 394 | 44 312 38 . . . Thermal 81 | . . 81 . . . Explosive . | . . . . . . Electromagnetic 119 | . 55 64 . . . Impact . | . . . . . . Slashing . | . . . . . . Piercing . | . . . . . . Highest Corruption . | . . . . . . Average Corruption . | . . . . . . Corruption Purged . | . . . . . . Corruption Blocked . | . . . . . . Overload Shots . | . . . . . . Overflow Damage . | . . . . . . Projectiles . | . . . . . . Explosions . | . . . . . . Melee . | . . . . . . Knockbacks . | . . . . . . Impact . | . . . . . . Kinetic . | . . . . . . Secondary . | . . . . . . Self-Inflicted Damage . | . . . . . . Shots . | . . . . . . Rammed . | . . . . . . Targets Rammed . | . . . . . . Kicked . | . . . . . . Crushed . | . . . . . . Highest Temperature 140 | . 68 140 . . . Average Temperature 28 | . 14 52 . . . Received Heat Transfer 81 | . . 9 . . 72 Siege Activations . | . . . . . . Robots Corrupted . | . . . . . . Combat Hostiles . | . . . . . . Parts Fried 1 | . 1 . . . . Impact Corruptions . | . . . . . . Robots Melted . | . . . . . . Combat Hostiles . | . . . . . . Parts Melted . | . . . . . . Heat Transferred 148 | . . 148 . . . Parts Sabotaged . | . . . . . . Parts Stolen . | . . . . . . Parts Stripped . | . . . . . . Power Chain Reactions . | . . . . . . Missiles Intercepted . | . . . . . . Alert | -11 -10 -9 -9 -9 -8 ------- Run | Scr Mat Mat Min Exi Min Peak Influence 406 | 10 377 406 157 . 45 Initial 159 | . 6 159 157 . . Average 140 | 5 166 233 133 . 19 Maximum Alert Level 2 | . 1 2 . . . Low Security (%) 74 | 100 70 49 100 . 100 Level 1 25 | . 29 50 . . . Level 2 . | . . . . . . Level 3 . | . . . . . . Level 4 . | . . . . . . Level 5 . | . . . . . . High Security . | . . . . . . Max Security . | . . . . . . Squads Dispatched 4 | . 3 1 . . . Investigation 1 | . 1 . . . . Extermination . | . . . . . . Reinforcement 3 | . 2 1 . . . Assault . | . . . . . . Garrison . | . . . . . . Intercept . | . . . . . . Searches Triggered . | . . . . . . Construction Impeded . | . . . . . . Haulers Reinforced . | . . . . . . Active Scanning Responses . | . . . . . . Cargo Convoy Interrupts . | . . . . . . Stealth | -11 -10 -9 -9 -9 -8 --------- Run | Scr Mat Mat Min Exi Min Distress Signals 3 | . 3 . . . . Communications Jammed . | . . . . . . Distress Signals . | . . . . . . Times Spotted 42 | . 14 15 2 . 11 Peak Tracking Total 9 | . 7 9 2 . 7 Tactical Retreats 8 | . 3 3 . . 2 Traps | -11 -10 -9 -9 -9 -8 ------- Run | Scr Mat Mat Min Exi Min Traps Triggered 1 | . 1 . . . . Indirectly . | . . . . . . Trap Hack Attempts . | . . . . . . Triggered . | . . . . . . Disarmed . | . . . . . . Reprogrammed . | . . . . . . Reused . | . . . . . . Traps Extracted . | . . . . . . Installed . | . . . . . . Triggered . | . . . . . . Machines | -11 -10 -9 -9 -9 -8 ---------- Run | Scr Mat Mat Min Exi Min Machines Disabled . | . . . . . . Max in Single Turn . | . . . . . . Machines Sabotaged . | . . . . . . Garrisons Compromised . | . . . . . . Overloaded Fab Kills . | . . . . . . Hacking | -11 -10 -9 -9 -9 -8 --------- Run | Scr Mat Mat Min Exi Min Machines Accessed 11 | . 3 3 . 4 1 Terminals 7 | . 3 3 . . 1 Fabricators . | . . . . . . Repair Stations . | . . . . . . Recycling Units . | . . . . . . Scanalyzers . | . . . . . . Garrison Access . | . . . . . . Total Hacks 68 | . 10 6 . 49 3 Successful 60 | . 5 4 . 49 2 Failed 8 | . 5 2 . . 1 Catastrophic . | . . . . . . Database Lockouts . | . . . . . . Manual 14 | . 6 5 . 2 1 Terminals 19 | . 10 6 . . 3 Fabricators . | . . . . . . Repair Stations . | . . . . . . Recycling Units . | . . . . . . Scanalyzers . | . . . . . . Garrison Access . | . . . . . . Terminal Hacks 56 | . 3 2 . 49 2 Record 50 | . . . . 49 1 Prototype ID Bank 1 | . 1 . . . . Terminal Index 1 | . . 1 . . . Locate Traps 2 | . 1 1 . . . Zone Layout 2 | . 1 . . . 1 Fabricator Hacks . | . . . . . . Repair Station Hacks . | . . . . . . Recycling Unit Hacks . | . . . . . . Scanalyzer . | . . . . . . Garrison Access Hacks . | . . . . . . Unauthorized Hacks 4 | . 2 2 . . . Terminals 4 | . 2 2 . . . Botnet 4 | . 2 2 . . . Fabricators . | . . . . . . Repair Stations . | . . . . . . Recycling Units . | . . . . . . Scanalyzers . | . . . . . . Garrison Access . | . . . . . . Data Cores Recovered . | . . . . . . Used . | . . . . . . Hacking Detections 7 | . 3 3 . . 1 Full Trace Events . | . . . . . . Feedback Events . | . . . . . . Feedback Blocked . | . . . . . . Robot Schematics Acquired . | . . . . . . Robots Built . | . . . . . . Authchips . | . . . . . . Time . | . . . . . . Total Robot Build Rating . | . . . . . . Part Schematics Acquired . | . . . . . . Parts Built . | . . . . . . Authchips . | . . . . . . Time . | . . . . . . Total Part Build Rating . | . . . . . . Parts Repaired . | . . . . . . Time . | . . . . . . Parts Recycled . | . . . . . . Recycled Matter . | . . . . . . Retrieved Matter . | . . . . . . Retrieved Components . | . . . . . . Parts Scanalyzed . | . . . . . . Part Schematics Acquired . | . . . . . . Parts Damaged . | . . . . . . Bothacking | -11 -10 -9 -9 -9 -8 ------------ Run | Scr Mat Mat Min Exi Min Used RIF Installer . | . . . . . . Robots Hacked . | . . . . . . Non-combat . | . . . . . . Combat . | . . . . . . Robot Hacks Applied . | . . . . . . Relay Couplers Released . | . . . . . . Fabnet Peak Effective % . | . . . . . . Robots Rewired . | . . . . . . Allies Hacked . | . . . . . . Hacks Repelled . | . . . . . . Allies | -11 -10 -9 -9 -9 -8 -------- Run | Scr Mat Mat Min Exi Min Total Allies . | . . . . . . Largest Group . | . . . . . . Highest-Rated Group . | . . . . . . Highest-Rated Ally . | . . . . . . Total Orders . | . . . . . . Ally Attacks . | . . . . . . Total Damage . | . . . . . . Kills . | . . . . . . Allies Corrupted . | . . . . . . Allies Melted . | . . . . . . Intel | -11 -10 -9 -9 -9 -8 ------- Run | Scr Mat Mat Min Exi Min Robot Analysis Total . | . . . . . . Derelict Logs Recovered . | . . . . . . Drone Launches . | . . . . . . Drone Recoveries . | . . . . . . Exploration | -11 -10 -9 -9 -9 -8 ------------- Run | Scr Mat Mat Min Exi Min Turns Passed 861 | 78 291 163 26 203 100 Spaces Moved 1777 | 50 429 412 77 582 227 Core 37 | 3 . . . . 34 Treads . | . . . . . . Legs . | . . . . . . Wheels 75 | 47 28 . . . . Hover . | . . . . . . Flight 1665 | . 401 412 77 582 193 Fastest Speed 29 | 50 37 29 29 34 34 Average Speed 37 | 99 41 30 30 34 41 Slowest Speed 120 | 100 100 109 34 34 120 Overloaded Moves . | . . . . . . Propulsion Burnouts . | . . . . . . Robots Hopped 33 | . 6 15 . . 12 Cave-ins Triggered . | . . . . . . Exploration Rate (%) 46 | 3 67 45 16 93 56 Regions Visited 5 Branch Regions 3 Pre-discovered Areas 1 | . . . . 1 . Known Exits Taken . | . . . . . . Unknown Exits Taken 5 | 1 1 1 1 1 . Scrap Searched . | . . . . . . Spaces Dug . | . . . . . . Terrain Destroyed . | . . . . . . Melee . | . . . . . . Projectile . | . . . . . . AOE . | . . . . . . Terrain Rammed . | . . . . . . Walls Destroyed . | . . . . . . Machines Disabled . | . . . . . . Actions | -11 -10 -9 -9 -9 -8 --------- Run | Scr Mat Mat Min Exi Min Total 1856 | 67 487 416 79 586 221 Wait 10 | 2 4 . . . 4 Move 1710 | 49 416 383 76 581 205 Hop 29 | . 6 13 . . 10 Pick Up 12 | 5 5 1 . 1 . Fast Attach 16 | 7 4 3 . 2 . Attach 6 | . 2 2 2 . . Detach 1 | . 1 . . . . Swap 8 | . 6 2 . . . Drop 21 | . 13 3 1 2 2 Fire 43 | 4 30 9 . . . Melee . | . . . . . . Ram . | . . . . . . Kick . | . . . . . . Crush . | . . . . . . Escape Stasis . | . . . . . . Rewire . | . . . . . . Trap . | . . . . . . Miscellaneous . | . . . . . . Route ------- -11/Scrapyard -10/Materials (discovered 2 exits: *Mat / [*Min]) -9/Materials -9/Mines -9/Exiles (discovered 2 exits: *Min x2) -8/Mines History --------- Turn | Location | Event 44 | -11/Scrapyard | Discovered new exit (range 15) 79 | -11/Scrapyard | Entered Materials 297 | -10/Materials | Discovered new exit (range 13) 364 | -10/Materials | Discovered new exit (range 18) 370 | -10/Materials | Entered another Materials area 370 | -9/Materials | Evolved 2 slots: Propulsion x2 531 | -9/Materials | Discovered new exit (range 6) 533 | -9/Materials | Entered Mines 534 | -9/Mines | Assembled infested the area 558 | -9/Mines | Discovered new exit (range 5) 559 | -9/Mines | Entered Exiles 564 | -9/Exiles | Discovered new exit (range 17) 568 | -9/Exiles | Met 8R-AWN 573 | -9/Exiles | Met EX-HEX 581 | -9/Exiles | Lost 5 parts (3n2w) 584 | -9/Exiles | Met EX-BIN 645 | -9/Exiles | Met EX-DEC 652 | -9/Exiles | Visited The Gauntlet 703 | -9/Exiles | Aligned with FarCom system 704 | -9/Exiles | Given EX-Vault access code 712 | -9/Exiles | Opened EX-Vault 714 | -9/Exiles | Found Prototype Energy Gun 714 | -9/Exiles | Identified AWS/Thermal 716 | -9/Exiles | Found Prototype Ballistic Gun 716 | -9/Exiles | Identified AWS/Gauss 719 | -9/Exiles | Found Prototype Ballistic Cannon 727 | -9/Exiles | Warned to stay clear of 0b10 Research branches 742 | -9/Exiles | Learned location of Zion (-7) 759 | -9/Exiles | Discovered new exit (range 10) 762 | -9/Exiles | Left Exiles lab with AWS/Autocannon 762 | -9/Exiles | Entered Mines 815 | -8/Mines | Build established: Mutant 839 | -8/Mines | Core integrity fell below 50% 853 | -8/Mines | Core integrity fell below 20% 862 | -8/Mines | Destroyed by S-10 Pest with Light Assault Rifle Last Messages --------------- 00791_ Current location identified: Mines >>Layout(Zone) Retrieving Zone 4E layout... Downloaded map data. >>Query(Terminal) Interactive station connected to the central network via reliable hard line. Relevant information is monitored and relayed by the terminal's Operator. Types of information accessible directly from each terminal are limited in order to mitigate the negative impacts of unauthorized access. Access is restricted by shielding the system behind multi-layered security, the first layer of which requires a dynamic key to clear without triggering defense mechanisms. 00794_ K-01 Serf collects debris. 00830_ Flight Unit destroyed. 00840_ Dropped Mining Claw. 00841_ Dropped Sml. Storage Unit. 00845_ Flight Unit destroyed. 00849_ Slug penetrates Wall. 00851_ K-01 Serf collects debris. 00852_ Penetrated by Slug. Map ----- +----------------------------------------------------+ | ??# #?# #????## #### #????????# | | ###### #####?# ##??## ######???## | | #??????# #### ## ###### | | ###### #?????## | | ???### ####### ## | | ??## ## ### ####### # #### | | ### #?# ##?????## ##?? | | # ##?# s ##??????## #?? | | ## ##??# ss #???????## #?? | | ####### ##???# #????????# #?? | | ### ##?????#####????# #????????# ##?? | | ??## ???????????????## #????????## #??? | | ???# ??????????????## ##????????# ##??? | | ??? ?????????????## #????????## #???? | | ?? ?????????????# #????????## ##???? | | ? ?????????????### ##????##### ##????? | | ? ???????????????## #?????# #?????? | | ???????????####### #?????# #?????? | | ???????????# ##?????## #?????? | | ????????????# ##### ##???????### ##????? | | ???????????????????# #??????????## ##???? | | ???????????????????????# #???????????## /! ##??? | | ???????????????????????# #????????????## #??? | | ???????????????????????# #?????????????## #??? | | ???????????????????????# #??????????????## #??? | | ???????????????????????# @#???????????????## #??? | | ???????????????????????# ???????????????# #??? | | ???????????????????????# ????????????# #??? | | ???????????????????????########??????????# #??? | | ????????????????????????????????????????# ??? | | ????????????????????????????????????????# #?? | | ????????????????????????????????????????# #?? | | ????????????????????????????????????????# #?? | | ????????????????????????????????????????## #?? | | ?????????????????????????????????????????# ##?? | | ?????????????????????????????????????????## ##??? | | ??????????????????????????????????????????###????? | | ?????????????????????????????????????????????????? | | ?????????????????????????????????????????????????? | | ?????????????????????????????????????????????????? | | ?????????????????????????????????????????????????? | | | | | | | | | | | | | | | | | | | +----------------------------------------------------+ Best States ------------- Heat Dissipation 28 Energy Generation 14 Energy Capacity 280 Matter Stores 299 Matter Capacity 300 Sight Range 18 Terrain Scan Range 16 Terrain Scan Density 10 Evasion (%) 64 Item Schematics ----------------- None Robot Schematics ------------------ None Fabricated ------------ Nothing Alien Tech Used ----------------- None Achievements -------------- None Challenges ------------ None Game ------ Seed HeartControlDatajack Manual? 0 Play Time 00:23:08 Cumulative 203.2 hours Start 2022.06.15 @ 16:06:57 End 2022.06.15 @ 16:29:17 Sessions 1 Manual Loads 0 Difficulty Rogue Special Mode None Game No. 103 Rogue 103 Adventurer 0 Explorer 0 Win Type - Total 6 Types 5/0/1/0/0/0/0/0/0 Lore% 71 Gallery% 75 Achievement% 61 Wizard Run 0 Options --------- ASCII 0 Keyboard 1 Movement Numpad Keybinds 0 Fullscreen 2 Font 18/SmallcapsGlow Map View 76x50 Tactical HUD 1 Map Filters NONE Filters NONE Steam 1 RUN: df084a81-b43f-4c6a-b2f5-b39f149a8a13